[Event "Titled Tuesday Blitz October 12 2021"]
[White "Terry, Renato"]
[Black "Shipov, Sergei"]
[WhiteFideId "3803457"]
[BlackFideId "4113624"]
[WhiteElo "2577"]
[BlackElo "2841"]
[Result "1-0"]
[Round "07"]
[TimeControl "180+1"]
[Date "2021.10.12"]
[WhiteClock "0:00:10"]
[BlackClock "0:00:15"]

1. d4 {[%clk 0:03:00]}  d5 {[%clk 0:02:55]} 2. Bg5 {[%clk 0:03:01]}  h6 {[%clk 0:02:52]} 3. Bh4 {[%clk 0:03:01]}  c6 {[%clk 0:02:53]} 4. e3 {[%clk 0:03:01]}  Qb6 {[%clk 0:02:53]} 5. b3 {[%clk 0:03:02]}  e5 {[%clk 0:02:53]} 6. Nf3 {[%clk 0:03:02]}  Nd7 {[%clk 0:02:52]} 7. Be2 {[%clk 0:03:01]}  Bd6 {[%clk 0:02:48]} 8. c4 {[%clk 0:02:58]}  Ne7 {[%clk 0:02:31]} 9. c5 {[%clk 0:02:30]}  Qa5+ {[%clk 0:02:19]} 10. Nfd2 {[%clk 0:02:24]}  Nf5 {[%clk 0:02:08]} 11. Bg3 {[%clk 0:02:00]}  Nxg3 {[%clk 0:02:07]} 12. hxg3 {[%clk 0:02:01]}  Bb8 {[%clk 0:02:05]} 13. a3 {[%clk 0:01:56]}  O-O {[%clk 0:02:03]} 14. b4 {[%clk 0:01:53]}  Qd8 {[%clk 0:02:03]} 15. Nc3 {[%clk 0:01:52]}  Re8 {[%clk 0:02:01]} 16. O-O {[%clk 0:01:43]}  Nf8 {[%clk 0:01:48]} 17. b5 {[%clk 0:01:35]}  Bd7 {[%clk 0:01:45]} 18. Rb1 {[%clk 0:01:34]}  Qa5 {[%clk 0:01:39]} 19. Qc2 {[%clk 0:01:24]}  exd4 {[%clk 0:01:37]} 20. exd4 {[%clk 0:01:22]}  Bf5 {[%clk 0:01:05]} 21. Bd3 {[%clk 0:01:22]}  Bxd3 {[%clk 0:01:04]} 22. Qxd3 {[%clk 0:01:23]}  Ne6 {[%clk 0:01:01]} 23. Nf3 {[%clk 0:01:11]}  Bc7 {[%clk 0:00:59]} 24. Rb3 {[%clk 0:01:02]}  Rac8 {[%clk 0:00:47]} 25. Rfb1 {[%clk 0:01:00]}  Bd8 {[%clk 0:00:47]} 26. Rb4 {[%clk 0:00:57]}  Qxa3 {[%clk 0:00:26]} 27. Ra4 {[%clk 0:00:29]}  Nxc5 {[%clk 0:00:25]} 28. dxc5 {[%clk 0:00:30]}  Qxc5 {[%clk 0:00:26]} 29. bxc6 {[%clk 0:00:26]}  bxc6 {[%clk 0:00:27]} 30. Qd4 {[%clk 0:00:20]}  Bb6 {[%clk 0:00:26]} 31. Qxc5 {[%clk 0:00:19]}  Bxc5 {[%clk 0:00:27]} 32. Ra6 {[%clk 0:00:17]}  Re6 {[%clk 0:00:25]} 33. Na4 {[%clk 0:00:17]}  Be7 {[%clk 0:00:17]} 34. Rxa7 {[%clk 0:00:15]}  c5 {[%clk 0:00:17]} 35. Re1 {[%clk 0:00:10]}  c4 {[%clk 0:00:16]} 36. Rxe6 {[%clk 0:00:09]}  fxe6 {[%clk 0:00:15]} 37. Rxe7 {[%clk 0:00:09]}  c3 {[%clk 0:00:15]} 38. Nxc3 {[%clk 0:00:09]}  Rxc3 {[%clk 0:00:15]} 39. Rxe6 {[%clk 0:00:10]} 1-0


[Site "https://www.chess.com"]

[Event "Titled Tuesday Blitz October 12 2021"]
[White "Warmerdam, Max"]
[Black "Djordjevic, Vuk"]
[WhiteFideId "1048104"]
[BlackFideId "902098"]
[WhiteElo "2537"]
[BlackElo "2463"]
[Result "1-0"]
[Round "07"]
[TimeControl "180+1"]
[Date "2021.10.12"]
[WhiteClock "0:00:53"]
[BlackClock "0:00:02"]

1. e4 {[%clk 0:03:00]}  e6 {[%clk 0:02:58]} 2. d4 {[%clk 0:02:58]}  d5 {[%clk 0:02:59]} 3. Nc3 {[%clk 0:02:59]}  Bb4 {[%clk 0:02:59]} 4. e5 {[%clk 0:02:57]}  c5 {[%clk 0:02:58]} 5. a3 {[%clk 0:02:58]}  Bxc3+ {[%clk 0:02:58]} 6. bxc3 {[%clk 0:02:58]}  Qa5 {[%clk 0:02:58]} 7. Bd2 {[%clk 0:02:59]}  Qa4 {[%clk 0:02:57]} 8. Qg4 {[%clk 0:02:59]}  Kf8 {[%clk 0:02:56]} 9. Nf3 {[%clk 0:03:00]}  Ne7 {[%clk 0:02:54]} 10. Bd3 {[%clk 0:03:01]}  c4 {[%clk 0:02:49]} 11. Be2 {[%clk 0:02:58]}  Qxc2 {[%clk 0:02:45]} 12. O-O {[%clk 0:02:59]}  h6 {[%clk 0:02:39]} 13. Rac1 {[%clk 0:02:55]}  Qa4 {[%clk 0:02:34]} 14. Bd1 {[%clk 0:02:54]}  Qe8 {[%clk 0:02:29]} 15. Bc2 {[%clk 0:02:53]}  Nd7 {[%clk 0:02:29]} 16. Nh4 {[%clk 0:02:52]}  f5 {[%clk 0:02:21]} 17. exf6 {[%clk 0:02:50]}  Nxf6 {[%clk 0:02:21]} 18. Qg3 {[%clk 0:02:47]}  g5 {[%clk 0:02:12]} 19. Nf3 {[%clk 0:02:36]}  Nc6 {[%clk 0:02:11]} 20. h4 {[%clk 0:02:31]}  g4 {[%clk 0:01:41]} 21. Ne5 {[%clk 0:02:26]}  Nxe5 {[%clk 0:01:41]} 22. Qxe5 {[%clk 0:02:25]}  Ke7 {[%clk 0:01:30]} 23. Rce1 {[%clk 0:02:21]}  Qh5 {[%clk 0:00:52]} 24. Bf5 {[%clk 0:02:12]}  Bd7 {[%clk 0:00:41]} 25. Bf4 {[%clk 0:02:11]}  Rae8 {[%clk 0:00:34]} 26. f3 {[%clk 0:01:37]}  gxf3 {[%clk 0:00:11]} 27. Rxf3 {[%clk 0:01:34]}  Kf7 {[%clk 0:00:11]} 28. Bg5 {[%clk 0:00:53]}  hxg5 {[%clk 0:00:08]} 29. Bg4 {[%clk 0:00:53]}  Qg6 {[%clk 0:00:02]} 30. Ref1 {[%clk 0:00:54]}  Kg8 {[%clk 0:00:02]} 31. Rxf6 {[%clk 0:00:53]}  Qe4 {[%clk 0:00:01]} 32. Qxg5+ {[%clk 0:00:52]}  Kh7 {[%clk 0:00:02]} 33. Rh6# {[%clk 0:00:53]} 1-0


[Site "https://www.chess.com"]

[Event "Titled Tuesday Blitz October 12 2021"]
[White "Yilmaz, Mustafa"]
[Black "Nguyen, Ngoc Truong Son"]
[WhiteFideId "6302718"]
[BlackFideId "12401110"]
[WhiteElo "2518"]
[BlackElo "2596"]
[Result "1-0"]
[Round "07"]
[TimeControl "180+1"]
[Date "2021.10.12"]
[WhiteClock "0:00:16"]
[BlackClock "0:00:03"]

1. d4 {[%clk 0:03:00]}  Nf6 {[%clk 0:02:59]} 2. c4 {[%clk 0:03:01]}  e6 {[%clk 0:02:59]} 3. Nf3 {[%clk 0:03:01]}  d5 {[%clk 0:02:59]} 4. Nc3 {[%clk 0:03:01]}  dxc4 {[%clk 0:02:59]} 5. e4 {[%clk 0:03:01]}  b5 {[%clk 0:02:59]} 6. e5 {[%clk 0:03:01]}  Nd5 {[%clk 0:03:00]} 7. Nxb5 {[%clk 0:03:01]}  Nb6 {[%clk 0:02:59]} 8. Be2 {[%clk 0:02:55]}  Nc6 {[%clk 0:02:57]} 9. a3 {[%clk 0:02:52]}  Be7 {[%clk 0:02:50]} 10. Be3 {[%clk 0:02:52]}  Na5 {[%clk 0:02:26]} 11. Qc2 {[%clk 0:02:45]}  Rb8 {[%clk 0:02:03]} 12. Nc3 {[%clk 0:02:40]}  O-O {[%clk 0:01:45]} 13. h4 {[%clk 0:02:38]}  Bb7 {[%clk 0:01:34]} 14. Ng5 {[%clk 0:02:28]}  g6 {[%clk 0:01:29]} 15. Nxh7 {[%clk 0:02:13]}  Kxh7 {[%clk 0:01:23]} 16. h5 {[%clk 0:02:13]}  Rh8 {[%clk 0:01:20]} 17. hxg6+ {[%clk 0:02:08]}  Kg7 {[%clk 0:01:20]} 18. O-O-O {[%clk 0:01:57]}  fxg6 {[%clk 0:01:00]} 19. Rh3 {[%clk 0:01:39]}  Rxh3 {[%clk 0:00:49]} 20. gxh3 {[%clk 0:01:39]}  Qf8 {[%clk 0:00:47]} 21. Bg4 {[%clk 0:01:34]}  Nb3+ {[%clk 0:00:34]} 22. Kb1 {[%clk 0:01:33]}  Nd5 {[%clk 0:00:29]} 23. Bxe6 {[%clk 0:01:01]}  Nxc3+ {[%clk 0:00:27]} 24. Qxc3 {[%clk 0:01:00]}  Bxa3 {[%clk 0:00:22]} 25. Qxc4 {[%clk 0:00:51]}  Be4+ {[%clk 0:00:19]} 26. Ka2 {[%clk 0:00:51]}  Bxb2 {[%clk 0:00:12]} 27. Qxc7+ {[%clk 0:00:50]}  Kh8 {[%clk 0:00:13]} 28. Qd6 {[%clk 0:00:43]}  Qxd6 {[%clk 0:00:12]} 29. exd6 {[%clk 0:00:44]}  Bc3 {[%clk 0:00:09]} 30. Bxb3 {[%clk 0:00:41]}  Bf5 {[%clk 0:00:07]} 31. Bf4 {[%clk 0:00:35]}  Rb6 {[%clk 0:00:08]} 32. Be5+ {[%clk 0:00:17]}  Kh7 {[%clk 0:00:07]} 33. Rc1 {[%clk 0:00:16]}  Ra6+ {[%clk 0:00:07]} 34. Ba4 {[%clk 0:00:17]}  Rxa4+ {[%clk 0:00:07]} 35. Kb3 {[%clk 0:00:17]}  Rb4+ {[%clk 0:00:04]} 36. Kxc3 {[%clk 0:00:17]}  Rb7 {[%clk 0:00:04]} 37. Kd2 {[%clk 0:00:16]}  Bxh3 {[%clk 0:00:03]} 38. Rh1 {[%clk 0:00:16]} 1-0


[Site "https://www.chess.com"]

[Event "Titled Tuesday Blitz October 12 2021"]
[White "Djordjevic, Vuk"]
[Black "Shipov, Sergei"]
[WhiteFideId "902098"]
[BlackFideId "4113624"]
[WhiteElo "2463"]
[BlackElo "2834"]
[Result "1-0"]
[Round "08"]
[TimeControl "180+1"]
[Date "2021.10.12"]
[WhiteClock "0:02:01"]
[BlackClock "0:00:01"]

1. d4 {[%clk 0:03:00]}  Nf6 {[%clk 0:02:57]} 2. Bg5 {[%clk 0:03:01]}  Ne4 {[%clk 0:02:55]} 3. Bf4 {[%clk 0:03:01]}  c5 {[%clk 0:02:55]} 4. f3 {[%clk 0:03:01]}  Nf6 {[%clk 0:02:51]} 5. dxc5 {[%clk 0:03:01]}  Qa5+ {[%clk 0:02:48]} 6. Nc3 {[%clk 0:03:00]}  Qxc5 {[%clk 0:02:45]} 7. e4 {[%clk 0:03:00]}  d6 {[%clk 0:02:42]} 8. Qd2 {[%clk 0:03:00]}  Nc6 {[%clk 0:02:41]} 9. Nge2 {[%clk 0:02:54]}  g6 {[%clk 0:02:37]} 10. g4 {[%clk 0:02:50]}  Bg7 {[%clk 0:02:37]} 11. h4 {[%clk 0:02:48]}  h5 {[%clk 0:02:34]} 12. g5 {[%clk 0:02:45]}  Nd7 {[%clk 0:02:33]} 13. Be3 {[%clk 0:02:45]}  Qa5 {[%clk 0:02:33]} 14. f4 {[%clk 0:02:43]}  Nb6 {[%clk 0:02:31]} 15. Nd4 {[%clk 0:02:35]}  Qb4 {[%clk 0:02:15]} 16. a3 {[%clk 0:02:29]}  Qa5 {[%clk 0:00:44]} 17. Nxc6 {[%clk 0:02:27]}  bxc6 {[%clk 0:00:20]} 18. b4 {[%clk 0:02:26]}  Nc4 {[%clk 0:00:10]} 19. bxa5 {[%clk 0:02:10]}  Nxd2 {[%clk 0:00:08]} 20. Kxd2 {[%clk 0:02:11]}  Bg4 {[%clk 0:00:07]} 21. Rb1 {[%clk 0:02:09]}  O-O {[%clk 0:00:06]} 22. Ba6 {[%clk 0:02:09]}  c5 {[%clk 0:00:04]} 23. Nd5 {[%clk 0:02:06]}  e6 {[%clk 0:00:02]} 24. Nf6+ {[%clk 0:02:06]}  Bxf6 {[%clk 0:00:01]} 25. gxf6 {[%clk 0:02:07]}  Bf3 {[%clk 0:00:01]} 26. Rhe1 {[%clk 0:02:01]} 1-0


[Site "https://www.chess.com"]

[Event "Titled Tuesday Blitz October 12 2021"]
[White "Gurevich, Dmitry"]
[Black "Nagy, Gabor"]
[WhiteFideId "2000407"]
[BlackFideId "737119"]
[WhiteElo "2506"]
[BlackElo "2534"]
[Result "0-1"]
[Round "08"]
[TimeControl "180+1"]
[Date "2021.10.12"]
[WhiteClock "0:00:41"]
[BlackClock "0:01:57"]

1. d4 {[%clk 0:03:00]}  Nf6 {[%clk 0:02:59]} 2. c4 {[%clk 0:03:01]}  g6 {[%clk 0:02:59]} 3. Nc3 {[%clk 0:03:00]}  Bg7 {[%clk 0:03:00]} 4. e4 {[%clk 0:03:00]}  d6 {[%clk 0:03:00]} 5. Nf3 {[%clk 0:03:00]}  O-O {[%clk 0:03:01]} 6. Be2 {[%clk 0:03:00]}  Na6 {[%clk 0:03:01]} 7. O-O {[%clk 0:03:00]}  e5 {[%clk 0:03:02]} 8. Re1 {[%clk 0:02:58]}  Re8 {[%clk 0:02:58]} 9. d5 {[%clk 0:02:54]}  Nc5 {[%clk 0:02:58]} 10. Qc2 {[%clk 0:02:48]}  a5 {[%clk 0:02:58]} 11. Be3 {[%clk 0:02:48]}  b6 {[%clk 0:02:56]} 12. Nd2 {[%clk 0:02:36]}  Ng4 {[%clk 0:02:53]} 13. Bxg4 {[%clk 0:02:35]}  Bxg4 {[%clk 0:02:54]} 14. a3 {[%clk 0:02:34]}  a4 {[%clk 0:02:44]} 15. Bxc5 {[%clk 0:02:33]}  bxc5 {[%clk 0:02:45]} 16. Nxa4 {[%clk 0:02:33]}  Bd7 {[%clk 0:02:45]} 17. Nc3 {[%clk 0:02:31]}  f5 {[%clk 0:02:46]} 18. f3 {[%clk 0:02:29]}  Bh6 {[%clk 0:02:45]} 19. b4 {[%clk 0:02:28]}  cxb4 {[%clk 0:02:40]} 20. axb4 {[%clk 0:02:27]}  Rxa1 {[%clk 0:02:39]} 21. Rxa1 {[%clk 0:02:27]}  Qb8 {[%clk 0:02:40]} 22. c5 {[%clk 0:02:02]}  Qxb4 {[%clk 0:02:38]} 23. c6 {[%clk 0:01:56]}  Bxc6 {[%clk 0:02:29]} 24. dxc6 {[%clk 0:01:52]}  Qd4+ {[%clk 0:02:29]} 25. Kh1 {[%clk 0:01:44]}  Bxd2 {[%clk 0:02:29]} 26. Rd1 {[%clk 0:01:30]}  Qxc3 {[%clk 0:02:26]} 27. Rxd2 {[%clk 0:01:30]}  Qxc2 {[%clk 0:02:24]} 28. Rxc2 {[%clk 0:01:30]}  fxe4 {[%clk 0:02:24]} 29. fxe4 {[%clk 0:01:30]}  Rb8 {[%clk 0:02:25]} 30. g3 {[%clk 0:01:22]}  Rb4 {[%clk 0:02:24]} 31. Ra2 {[%clk 0:01:20]}  Rc4 {[%clk 0:02:23]} 32. Ra6 {[%clk 0:01:20]}  Rc2 {[%clk 0:02:19]} 33. h4 {[%clk 0:01:15]}  Kf7 {[%clk 0:02:16]} 34. Kg1 {[%clk 0:01:13]}  Ke6 {[%clk 0:02:15]} 35. Kf1 {[%clk 0:01:12]}  d5 {[%clk 0:02:13]} 36. exd5+ {[%clk 0:01:12]}  Kxd5 {[%clk 0:02:14]} 37. Ra8 {[%clk 0:01:11]}  Ke4 {[%clk 0:02:09]} 38. Rf8 {[%clk 0:01:07]}  Rxc6 {[%clk 0:02:06]} 39. Rf7 {[%clk 0:01:03]}  h5 {[%clk 0:02:06]} 40. Kf2 {[%clk 0:01:01]}  Rc2+ {[%clk 0:02:05]} 41. Kf1 {[%clk 0:01:00]}  c5 {[%clk 0:02:05]} 42. Rf6 {[%clk 0:00:59]}  Ke3 {[%clk 0:02:03]} 43. Rxg6 {[%clk 0:00:58]}  e4 {[%clk 0:02:04]} 44. Rg5 {[%clk 0:00:49]}  c4 {[%clk 0:02:04]} 45. Rxh5 {[%clk 0:00:49]}  c3 {[%clk 0:01:59]} 46. Rc5 {[%clk 0:00:46]}  Kf3 {[%clk 0:01:58]} 47. Rf5+ {[%clk 0:00:43]}  Kxg3 {[%clk 0:01:58]} 48. h5 {[%clk 0:00:41]}  Rd2 {[%clk 0:01:57]} 0-1


[Site "https://www.chess.com"]

[Event "Titled Tuesday Blitz October 12 2021"]
[White "Hansen, Eric"]
[Black "Lazavik, Denis"]
[WhiteFideId "2606771"]
[BlackFideId "13515110"]
[WhiteElo "2568"]
[BlackElo "2436"]
[Result "1-0"]
[Round "08"]
[TimeControl "180+1"]
[Date "2021.10.12"]
[WhiteClock "0:00:14"]
[BlackClock "0:00:03"]

1. Nf3 {[%clk 0:03:00]}  d5 {[%clk 0:02:59]} 2. g3 {[%clk 0:02:59]}  g6 {[%clk 0:02:58]} 3. Bg2 {[%clk 0:02:58]}  Bg7 {[%clk 0:02:58]} 4. O-O {[%clk 0:02:57]}  e5 {[%clk 0:02:58]} 5. d3 {[%clk 0:02:57]}  Ne7 {[%clk 0:02:58]} 6. e4 {[%clk 0:02:53]}  O-O {[%clk 0:02:57]} 7. exd5 {[%clk 0:02:52]}  Nxd5 {[%clk 0:02:56]} 8. Re1 {[%clk 0:02:53]}  Nc6 {[%clk 0:02:51]} 9. Nc3 {[%clk 0:02:47]}  Nde7 {[%clk 0:02:37]} 10. Rb1 {[%clk 0:02:46]}  a5 {[%clk 0:02:36]} 11. a3 {[%clk 0:02:34]}  Re8 {[%clk 0:02:20]} 12. b4 {[%clk 0:02:32]}  axb4 {[%clk 0:02:20]} 13. axb4 {[%clk 0:02:33]}  Nf5 {[%clk 0:02:20]} 14. Bg5 {[%clk 0:02:23]}  f6 {[%clk 0:02:10]} 15. b5 {[%clk 0:02:21]}  Ncd4 {[%clk 0:02:06]} 16. Nxd4 {[%clk 0:02:21]}  Nxd4 {[%clk 0:01:42]} 17. Be3 {[%clk 0:02:14]}  Ra3 {[%clk 0:01:33]} 18. Bxd4 {[%clk 0:01:56]}  Qxd4 {[%clk 0:01:27]} 19. Nd5 {[%clk 0:01:55]}  Qc5 {[%clk 0:01:25]} 20. d4 {[%clk 0:01:54]}  Qd6 {[%clk 0:01:12]} 21. c4 {[%clk 0:01:47]}  Bf5 {[%clk 0:01:01]} 22. c5 {[%clk 0:01:37]}  Qd8 {[%clk 0:00:59]} 23. Rb3 {[%clk 0:01:26]}  Rxb3 {[%clk 0:00:55]} 24. Qxb3 {[%clk 0:01:27]}  Be6 {[%clk 0:00:56]} 25. dxe5 {[%clk 0:01:24]}  fxe5 {[%clk 0:00:47]} 26. Qf3 {[%clk 0:01:08]}  Rf8 {[%clk 0:00:38]} 27. Qe4 {[%clk 0:01:06]}  Bf5 {[%clk 0:00:38]} 28. Qe2 {[%clk 0:01:00]}  Kh8 {[%clk 0:00:34]} 29. Rd1 {[%clk 0:00:58]}  c6 {[%clk 0:00:27]} 30. bxc6 {[%clk 0:00:55]}  bxc6 {[%clk 0:00:27]} 31. Nb4 {[%clk 0:00:53]}  Qa5 {[%clk 0:00:27]} 32. Qc4 {[%clk 0:00:51]}  Qa4 {[%clk 0:00:16]} 33. Rc1 {[%clk 0:00:51]}  e4 {[%clk 0:00:16]} 34. Bxe4 {[%clk 0:00:40]}  Bxe4 {[%clk 0:00:16]} 35. Qxe4 {[%clk 0:00:40]}  Qa3 {[%clk 0:00:17]} 36. Rc2 {[%clk 0:00:33]}  Qa4 {[%clk 0:00:15]} 37. Re2 {[%clk 0:00:25]}  Qa1+ {[%clk 0:00:12]} 38. Kg2 {[%clk 0:00:25]}  Qc3 {[%clk 0:00:09]} 39. Rc2 {[%clk 0:00:24]}  Qb3 {[%clk 0:00:06]} 40. Nxc6 {[%clk 0:00:23]}  Qb7 {[%clk 0:00:06]} 41. Re2 {[%clk 0:00:22]}  Qc7 {[%clk 0:00:06]} 42. Qd5 {[%clk 0:00:21]}  Rc8 {[%clk 0:00:06]} 43. Ne7 {[%clk 0:00:18]}  Rd8 {[%clk 0:00:06]} 44. Qc4 {[%clk 0:00:14]}  Bf8 {[%clk 0:00:03]} 45. Qg8# {[%clk 0:00:14]} 1-0


[Site "https://www.chess.com"]

[Event "Titled Tuesday Blitz October 12 2021"]
[White "Hnydiuk, Aleksander"]
[Black "Erdogdu, Mert"]
[WhiteFideId "1109057"]
[BlackFideId "6301495"]
[WhiteElo "2374"]
[BlackElo "2485"]
[Result "1/2-1/2"]
[Round "08"]
[TimeControl "180+1"]
[Date "2021.10.12"]
[WhiteClock "0:00:02"]
[BlackClock "0:00:20"]

1. Nf3 {[%clk 0:03:00]}  d5 {[%clk 0:03:00]} 2. d4 {[%clk 0:03:00]}  e6 {[%clk 0:03:00]} 3. c4 {[%clk 0:03:00]}  c5 {[%clk 0:02:58]} 4. cxd5 {[%clk 0:02:59]}  exd5 {[%clk 0:02:59]} 5. Nc3 {[%clk 0:02:59]}  Nc6 {[%clk 0:03:00]} 6. g3 {[%clk 0:02:53]}  Nf6 {[%clk 0:02:59]} 7. Bg2 {[%clk 0:02:52]}  Be7 {[%clk 0:02:59]} 8. O-O {[%clk 0:02:52]}  O-O {[%clk 0:02:58]} 9. dxc5 {[%clk 0:02:46]}  Bxc5 {[%clk 0:02:58]} 10. Bg5 {[%clk 0:02:46]}  d4 {[%clk 0:02:57]} 11. Bxf6 {[%clk 0:02:39]}  Qxf6 {[%clk 0:02:58]} 12. Ne4 {[%clk 0:02:39]}  Qe7 {[%clk 0:02:58]} 13. Nxc5 {[%clk 0:02:39]}  Qxc5 {[%clk 0:02:58]} 14. Rc1 {[%clk 0:02:35]}  Qb6 {[%clk 0:02:58]} 15. Qb3 {[%clk 0:02:23]}  Re8 {[%clk 0:02:52]} 16. Rfd1 {[%clk 0:01:51]}  Rxe2 {[%clk 0:02:21]} 17. Qxb6 {[%clk 0:01:40]}  axb6 {[%clk 0:02:21]} 18. Nxd4 {[%clk 0:01:40]}  Nxd4 {[%clk 0:02:03]} 19. Rxd4 {[%clk 0:01:41]}  Be6 {[%clk 0:02:02]} 20. Bxb7 {[%clk 0:01:39]}  Rb8 {[%clk 0:02:00]} 21. Bc8 {[%clk 0:01:10]}  g6 {[%clk 0:01:27]} 22. Bxe6 {[%clk 0:01:06]}  Rxe6 {[%clk 0:01:28]} 23. Rc7 {[%clk 0:01:04]}  Kg7 {[%clk 0:01:20]} 24. Rf4 {[%clk 0:01:02]}  Rf8 {[%clk 0:01:20]} 25. Rb7 {[%clk 0:01:00]}  g5 {[%clk 0:00:57]} 26. Rb4 {[%clk 0:00:59]}  Ra8 {[%clk 0:00:56]} 27. a3 {[%clk 0:00:34]}  Ra6 {[%clk 0:00:56]} 28. Rb5 {[%clk 0:00:34]}  Kg6 {[%clk 0:00:56]} 29. g4 {[%clk 0:00:29]}  h6 {[%clk 0:00:50]} 30. Kg2 {[%clk 0:00:28]}  Rf6 {[%clk 0:00:46]} 31. h3 {[%clk 0:00:27]}  Rd6 {[%clk 0:00:44]} 32. Rf5 {[%clk 0:00:25]}  f6 {[%clk 0:00:44]} 33. Rb5 {[%clk 0:00:25]}  h5 {[%clk 0:00:43]} 34. Rb4 {[%clk 0:00:23]}  hxg4 {[%clk 0:00:41]} 35. hxg4 {[%clk 0:00:23]}  Rc6 {[%clk 0:00:42]} 36. Rd7 {[%clk 0:00:17]}  Ra5 {[%clk 0:00:37]} 37. Re4 {[%clk 0:00:14]}  f5 {[%clk 0:00:29]} 38. gxf5+ {[%clk 0:00:13]}  Kxf5 {[%clk 0:00:29]} 39. Rb4 {[%clk 0:00:12]}  Re5 {[%clk 0:00:28]} 40. Rb7 {[%clk 0:00:10]}  Ree6 {[%clk 0:00:28]} 41. Rb5+ {[%clk 0:00:10]}  Kg6 {[%clk 0:00:27]} 42. a4 {[%clk 0:00:10]}  Red6 {[%clk 0:00:27]} 43. b3 {[%clk 0:00:10]}  Kf6 {[%clk 0:00:26]} 44. Rb8 {[%clk 0:00:10]}  Kg6 {[%clk 0:00:26]} 45. Rg8+ {[%clk 0:00:09]}  Kf6 {[%clk 0:00:26]} 46. Rbxg5 {[%clk 0:00:09]}  Kf7 {[%clk 0:00:25]} 47. R5g7+ {[%clk 0:00:09]}  Kf6 {[%clk 0:00:25]} 48. Rg6+ {[%clk 0:00:09]}  Kf7 {[%clk 0:00:25]} 49. Rxd6 {[%clk 0:00:09]}  Rxd6 {[%clk 0:00:26]} 50. Rb8 {[%clk 0:00:09]}  Ke7 {[%clk 0:00:26]} 51. Rb7+ {[%clk 0:00:09]}  Ke6 {[%clk 0:00:26]} 52. Kf3 {[%clk 0:00:09]}  Kd5 {[%clk 0:00:26]} 53. Kg2 {[%clk 0:00:06]}  Ke4 {[%clk 0:00:25]} 54. b4 {[%clk 0:00:05]}  Rg6+ {[%clk 0:00:23]} 55. Kf1 {[%clk 0:00:04]}  Kd3 {[%clk 0:00:22]} 56. a5 {[%clk 0:00:02]}  bxa5 {[%clk 0:00:22]} 57. bxa5 {[%clk 0:00:03]}  Kc4 {[%clk 0:00:20]} 58. Rb6 {[%clk 0:00:02]}  Rg5 {[%clk 0:00:20]} 59. a6 {[%clk 0:00:02]}  Ra5 {[%clk 0:00:21]} 60. Kg2 {[%clk 0:00:02]}  Kd5 {[%clk 0:00:21]} 61. Rh6 {[%clk 0:00:02]}  Ke4 {[%clk 0:00:21]} 62. Kg3 {[%clk 0:00:01]}  Ra3+ {[%clk 0:00:18]} 63. f3+ {[%clk 0:00:02]}  Rxf3+ {[%clk 0:00:18]} 64. Kg4 {[%clk 0:00:03]}  Ra3 {[%clk 0:00:18]} 65. Re6+ {[%clk 0:00:03]}  Kd5 {[%clk 0:00:18]} 66. Rf6 {[%clk 0:00:02]}  Kc5 {[%clk 0:00:18]} 67. Rf5+ {[%clk 0:00:01]}  Kb6 {[%clk 0:00:18]} 68. Rf6+ {[%clk 0:00:02]}  Ka7 {[%clk 0:00:18]} 69. Kg5 {[%clk 0:00:03]}  Ra5+ {[%clk 0:00:18]} 70. Kg6 {[%clk 0:00:02]}  Rb5 {[%clk 0:00:19]} 71. Re6 {[%clk 0:00:02]}  Rb6 {[%clk 0:00:19]} 72. Kf6 {[%clk 0:00:03]}  Kxa6 {[%clk 0:00:19]} 73. Rxb6+ {[%clk 0:00:02]}  Kxb6 {[%clk 0:00:20]} 1/2-1/2


[Site "https://www.chess.com"]

[Event "Titled Tuesday Blitz October 12 2021"]
[White "Holt, Conrad"]
[Black "Terry, Renato"]
[WhiteFideId "2034387"]
[BlackFideId "3803457"]
[WhiteElo "2586"]
[BlackElo "2577"]
[Result "0-1"]
[Round "08"]
[TimeControl "180+1"]
[Date "2021.10.12"]
[WhiteClock "0:00:01"]
[BlackClock "0:00:16"]

1. d4 {[%clk 0:03:00]}  Nf6 {[%clk 0:02:56]} 2. c4 {[%clk 0:03:01]}  c6 {[%clk 0:02:53]} 3. Nc3 {[%clk 0:02:59]}  d5 {[%clk 0:02:53]} 4. e3 {[%clk 0:02:59]}  a6 {[%clk 0:02:53]} 5. Nf3 {[%clk 0:02:55]}  b5 {[%clk 0:02:52]} 6. b3 {[%clk 0:02:52]}  Bg4 {[%clk 0:02:51]} 7. Bd2 {[%clk 0:02:48]}  Nbd7 {[%clk 0:02:49]} 8. h3 {[%clk 0:02:46]}  Bh5 {[%clk 0:02:47]} 9. Be2 {[%clk 0:02:40]}  e6 {[%clk 0:02:47]} 10. O-O {[%clk 0:02:37]}  Bd6 {[%clk 0:02:46]} 11. Rc1 {[%clk 0:02:33]}  O-O {[%clk 0:02:46]} 12. Nh4 {[%clk 0:02:03]}  Bxe2 {[%clk 0:02:31]} 13. Nxe2 {[%clk 0:02:04]}  Ne4 {[%clk 0:02:29]} 14. Nf3 {[%clk 0:02:03]}  Rc8 {[%clk 0:02:26]} 15. Qe1 {[%clk 0:01:58]}  Qe7 {[%clk 0:02:23]} 16. c5 {[%clk 0:01:49]}  Bb8 {[%clk 0:02:21]} 17. Ba5 {[%clk 0:01:46]}  e5 {[%clk 0:02:14]} 18. Nd2 {[%clk 0:01:17]}  f5 {[%clk 0:02:11]} 19. Qd1 {[%clk 0:00:44]}  Rce8 {[%clk 0:01:58]} 20. Nf3 {[%clk 0:00:43]}  g5 {[%clk 0:01:51]} 21. dxe5 {[%clk 0:00:33]}  Nxe5 {[%clk 0:01:52]} 22. Nfd4 {[%clk 0:00:24]}  g4 {[%clk 0:01:22]} 23. Nf4 {[%clk 0:00:22]}  Rf6 {[%clk 0:01:09]} 24. Rc2 {[%clk 0:00:18]}  Rh6 {[%clk 0:01:09]} 25. f3 {[%clk 0:00:13]}  Ng3 {[%clk 0:01:01]} 26. Re1 {[%clk 0:00:13]}  Qh4 {[%clk 0:00:50]} 27. Rf2 {[%clk 0:00:13]}  gxh3 {[%clk 0:00:47]} 28. gxh3 {[%clk 0:00:12]}  Ng6 {[%clk 0:00:46]} 29. Rg2 {[%clk 0:00:12]}  Kf8 {[%clk 0:00:27]} 30. Nde6+ {[%clk 0:00:11]}  Kf7 {[%clk 0:00:27]} 31. Bc3 {[%clk 0:00:07]}  Rxe6 {[%clk 0:00:19]} 32. Nxe6 {[%clk 0:00:08]}  Kxe6 {[%clk 0:00:20]} 33. e4 {[%clk 0:00:06]}  fxe4 {[%clk 0:00:19]} 34. fxe4 {[%clk 0:00:05]}  Nxe4 {[%clk 0:00:18]} 35. Qf3 {[%clk 0:00:01]}  Qf4 {[%clk 0:00:16]} 0-1


[Site "https://www.chess.com"]